bitfinex-derivatives/quotes_ETHF0:USTF0_20250624
["timestamp","ask_amount","ask_price","bid_price","bid_amount"]
[1750801503303,7.26837577,2438.9,2438.6,2.06093]
[1750801503304,32.195,2438.7,2438.6,2.06093]
[1750801503502,32.195,2438.7,2438.6,0.65583]
[1750801503707,33.21161673,2438.7,2438.6,0.65583]
[1750801504504,10.58756,2438.9,2438.7,0.65578]
[1750801504708,26.47877257,2438.8,2438.7,0.73991111]
[1750801504900,1.01677257,2438.8,2438.7,0.73991111]
[1750801505100,26.47877257,2438.8,2438.7,0.73991111]
[1750801505606,26.48877257,2438.8,2438.7,0.73991111]
[1750801506009,26.48177257,2438.8,2438.7,0.73991111]
[1750801506306,26.48144567,2438.8,2438.7,0.73991111]
[1750801506901,5.64223519,2439.5,2439.3,0.65563]
[1750801507111,3.2078,2439.5,2439.4,0.65562]
[1750801507407,3.2078,2439.8,2439.4,0.08413111]
[1750801507605,25.5,2439.7,2439.6,0.65554]
[1750801508108,9.9308,2439.8,2439.7,0.65554]
[1750801508412,32.217,2439.8,2439.7,0.73967111]
[1750801508707,25.494,2439.8,2439.7,0.08413111]
[1750801509003,7.3785,2439.9,2439.7,0.73967111]
[1750801509203,7.3785,2439.9,2439.8,0.78873111]
[1750801509405,6.723,2439.9,2439.8,0.78873111]
[1750801509605,32.225,2439.9,2439.8,0.78873111]
[1750801509904,32.223,2439.9,2439.8,1.44424111]
[1750801511009,32.223,2439.9,2439.5,0.6976]
[1750801511208,32.223,2439.9,2439.8,0.08413111]
[1750801512109,0.65547,2440.0,2439.8,0.73964111]
[1750801512411,10.58525,2440.1,2439.9,0.08413111]
[1750801512604,25.536,2440.0,2439.8,0.65551]
[1750801513102,25.536,2440.0,2439.9,0.08413111]
[1750801513910,9.9298,2440.1,2439.9,0.08413111]
[1750801514108,3.2078,2440.1,2440.0,0.08413111]
[1750801514402,28.7308,2440.1,2440.0,0.73873111]
[1750801514616,29.38623,2440.1,2440.0,0.73873111]
[1750801514909,29.38123,2440.1,2440.0,0.73873111]
[1750801515107,29.38123,2440.1,2440.0,0.08413111]
[1750801516211,29.36823,2440.1,2440.0,0.08413111]
[1750801518107,3.2078,2440.1,2440.0,0.73959111]
[1750801518408,28.6958,2440.1,2440.0,0.73959111]
[1750801523410,3.2078,2440.1,2440.0,0.73959111]
[1750801523713,28.6558,2440.1,2440.0,0.73959111]
[1750801524113,28.6548,2440.1,2440.0,0.73959111]
[1750801524315,28.6508,2440.1,2440.0,0.73959111]
[1750801524520,3.2078,2440.1,2440.0,0.73959111]
[1750801525116,28.6468,2440.1,2440.0,0.73959111]
[1750801526716,3.2078,2440.1,2440.0,0.73959111]
[1750801526915,28.6318,2440.1,2440.0,0.73959111]
[1750801527916,0.7083,2440.3,2440.2,0.65539]
[1750801528115,0.65527,2440.7,2440.6,0.65529]
[1750801528320,27.82859456,2440.7,2440.6,0.73942111]
[1750801528914,27.17332456,2440.7,2440.6,0.73942111]
[1750801529926,0.7208,2440.7,2440.6,0.73942111]
[1750801530118,26.1658,2440.7,2440.6,0.73942111]
[1750801530420,26.1558,2440.7,2440.6,0.73942111]
[1750801531012,26.1538,2440.7,2440.6,0.73942111]
[1750801531217,25.427,2440.7,2440.6,0.73942111]
[1750801531416,2.43443519,2441.5,2441.0,0.65518]
[1750801531417,3.2078,2441.1,2441.0,0.65518]
[1750801531619,3.04435649,2441.3,2441.2,0.65512]
[1750801531819,28.64435649,2441.3,2441.2,0.65512]
[1750801532013,28.64435649,2441.3,2441.2,0.73925111]
[1750801532821,0.7221,2441.4,2441.3,0.6551]
[1750801533021,26.3111,2441.4,2441.3,0.73923111]
[1750801533217,6.25215649,2441.5,2441.4,0.65507]
[1750801533414,31.83615649,2441.5,2441.4,0.73920111]
[1750801533622,31.83615649,2441.5,2441.4,0.65507]
[1750801533822,31.83615649,2441.5,2441.4,0.73920111]
[1750801535329,6.25215649,2441.5,2441.4,0.73920111]
[1750801535621,31.83415649,2441.5,2441.4,0.73920111]
[1750801536027,3.04435649,2441.5,2441.4,0.73920111]
[1750801536229,28.60835649,2441.5,2441.4,0.73920111]
[1750801537231,11.28285649,2441.7,2441.4,0.08413111]
[1750801537432,11.28285649,2441.7,2441.6,0.73915111]
[1750801537632,36.83985649,2441.7,2441.6,0.73915111]
[1750801537833,36.83985649,2441.7,2441.6,0.65502]
[1750801538133,33.7955,2441.7,2441.5,0.65503]
[1750801538335,33.7955,2441.7,2441.6,0.08413111]
[1750801538932,1.4435,2441.7,2441.5,0.65503]
[1750801539130,1.4435,2441.7,2441.6,0.08413111]
[1750801539328,26.9805,2441.7,2441.6,0.08413111]
[1750801539529,27.63549,2441.7,2441.5,0.65503]
[1750801539729,27.63549,2441.7,2441.6,0.08413111]
[1750801539928,27.63549,2441.7,2441.5,0.65503]
[1750801540133,27.63549,2441.7,2441.6,0.08413111]
[1750801540332,27.63549,2441.7,2441.5,0.65503]
[1750801540535,27.63549,2441.7,2441.6,0.08413111]
[1750801541231,27.63549,2441.7,2441.5,0.65503]
[1750801541433,27.63549,2441.7,2441.6,0.08413111]
[1750801541835,26.9625,2441.7,2441.6,0.65502]
[1750801542029,27.61749,2441.7,2441.5,0.65502]
[1750801542229,27.61749,2441.7,2441.6,0.08413111]
[1750801542528,27.61749,2441.7,2441.5,0.65502]
[1750801542835,27.61749,2441.7,2441.6,0.08413111]
[1750801543335,27.61749,2441.7,2441.5,0.65502]
[1750801543532,27.61749,2441.7,2441.6,0.08413111]
[1750801544236,27.61749,2441.7,2441.5,0.65502]
[1750801544436,27.61749,2441.7,2441.6,0.08413111]
[1750801544637,27.61749,2441.7,2441.5,0.65502]
[1750801544836,26.9625,2441.7,2441.6,0.73915111]
[1750801545036,26.9625,2441.7,2441.6,0.08413111]
[1750801545232,1.4435,2441.7,2441.6,0.65502]
[1750801545537,26.2111,2441.7,2441.6,0.73915111]
[1750801547936,26.1941,2441.7,2441.6,0.73915111]
[1750801550940,0.7221,2441.7,2441.6,0.73915111]
[1750801551139,26.1681,2441.7,2441.6,0.73915111]
[1750801552642,0.7221,2441.7,2441.6,0.73915111]
[1750801553038,26.1551,2441.7,2441.6,0.73915111]
[1750801553541,0.7221,2441.7,2441.6,0.73915111]
[1750801553741,26.1491,2441.7,2441.6,0.73915111]
[1750801555239,27.15591782,2441.7,2441.6,0.73915111]
[1750801555436,26.1491,2441.7,2441.6,0.73915111]
[1750801556344,1.72956198,2441.7,2441.6,0.73915111]
[1750801556543,26.41546198,2441.7,2441.6,0.73915111]
[1750801556743,1.00746198,2441.7,2441.6,0.73915111]
[1750801557043,26.41046198,2441.7,2441.6,0.73915111]
[1750801559140,3.2078,2442.6,2441.6,14.85635649]
[1750801559347,3.75815649,2442.9,2442.5,0.65478]
[1750801559646,3.04435649,2442.9,2442.8,0.6547]
[1750801559835,28.66935649,2442.9,2442.8,0.6547]
[1750801560235,3.04435649,2442.9,2442.8,0.6547]
[1750801560443,28.66535649,2442.9,2442.8,0.6547]
[1750801562050,28.65535649,2442.9,2442.8,0.6547]
[1750801563151,28.65535649,2442.9,2442.6,2.6801]
[1750801563347,28.65535649,2442.9,2442.8,0.6547]
[1750801564055,28.65535649,2442.9,2442.7,0.65471]
[1750801564350,28.65535649,2442.9,2442.8,0.6547]
[1750801564653,25.588,2442.9,2442.8,0.6547]
[1750801564953,3.04435649,2443.1,2443.0,0.65464]
[1750801565154,28.62435649,2443.1,2443.0,0.65464]
[1750801565652,0.7138,2443.2,2443.1,0.65462]
[1750801565851,36.13815649,2443.2,2443.1,0.65462]
[1750801566050,10.56215649,2443.2,2443.1,0.65462]
[1750801566247,36.13015649,2443.2,2443.1,0.65462]
[1750801567154,3.75815649,2443.2,2443.1,0.65462]
[1750801567354,29.33215649,2443.2,2443.1,0.65462]
[1750801568752,29.32615649,2443.2,2443.1,0.65462]
[1750801569054,26.2818,2443.2,2443.1,0.65462]
[1750801570053,26.2648,2443.2,2443.1,0.65462]
[1750801571056,3.69890649,2443.4,2443.3,0.65456]
[1750801571257,3.69890649,2443.4,2443.2,0.65456]
[1750801571258,29.23990649,2443.4,2443.2,0.65456]
[1750801571452,29.23990649,2443.4,2443.3,0.65456]
[1750801572254,0.65462,2443.1,2443.0,0.65464]
[1750801572554,3.69897649,2443.1,2443.0,0.65464]
[1750801572755,3.04435649,2443.1,2443.0,0.65464]
[1750801573351,3.04435649,2443.2,2443.1,0.65462]
[1750801574755,29.22594649,2443.2,2443.0,0.65462]
[1750801574953,0.6753,2443.1,2443.0,0.65462]
[1750801575353,0.6753,2443.1,2443.0,2.04952]
[1750801575958,25.514,2443.3,2443.2,0.65458]
[1750801576458,26.16857,2443.3,2443.1,0.6546]
[1750801577460,0.65457,2443.3,2443.1,0.6546]
[1750801577656,2.0771,2443.5,2443.1,3.2078]
[1750801577851,0.6753,2443.5,2443.4,0.65453]
[1750801578058,26.1703,2443.5,2443.4,0.65453]
[1750801578253,26.82481,2443.5,2443.3,0.65454]
[1750801578453,26.1703,2443.5,2443.3,0.65454]
[1750801578654,1.3758,2443.4,2443.3,0.65456]
[1750801579257,2.03033,2443.4,2443.2,0.65457]
[1750801579460,2.03033,2443.4,2443.3,0.65456]
[1750801580955,26.82482,2443.5,2443.1,3.2078]
[1750801581359,0.65453,2443.4,2443.3,0.65455]
[1750801581554,26.82483,2443.5,2443.3,0.65455]
[1750801582558,0.65453,2443.4,2443.3,0.65455]
[1750801583561,26.82482,2443.5,2443.3,0.65455]
[1750801583762,0.65453,2443.4,2443.3,0.65455]
[1750801586661,26.08953,2443.4,2443.3,0.65455]
[1750801587362,27.09113693,2443.4,2443.3,0.65455]
[1750801587969,26.08953,2443.4,2443.3,0.65455]
[1750801588158,27.09231793,2443.4,2443.3,0.65455]
[1750801590961,26.43778793,2443.4,2443.3,0.65455]
[1750801591668,1.00278793,2443.4,2443.3,0.65455]
[1750801591866,27.05631793,2443.4,2443.3,0.65455]
[1750801592065,26.40178793,2443.4,2443.3,0.65455]
[1750801592463,26.40178793,2443.4,2443.2,0.65457]
[1750801592759,1.00278793,2443.3,2443.2,0.65457]
[1750801593573,0.65459,2443.2,2443.1,3.2078]
[1750801593870,1.65737793,2443.2,2443.1,3.2078]
[1750801594471,4.70173442,2443.2,2443.1,3.2078]
[1750801594671,0.65466,2443.0,2442.8,3.86248]
[1750801594873,1.00278793,2442.9,2442.8,3.86248]
[1750801596070,1.65745793,2442.9,2442.8,3.2078]
[1750801597573,8.34245793,2442.9,2442.8,3.2078]
[1750801597765,0.65476,2442.6,2442.5,3.2078]
[1750801598069,27.07454793,2442.6,2442.5,3.2078]
[1750801598472,27.78484793,2442.6,2442.5,3.2078]
[1750801599766,2.36784793,2442.6,2442.5,3.2078]
[1750801599972,27.77984793,2442.6,2442.5,3.2078]
[1750801600273,2.36784793,2442.6,2442.5,3.2078]
[1750801600577,27.77384793,2442.6,2442.5,3.86258]
[1750801600870,26.77106,2442.6,2442.5,3.86258]
[1750801601169,26.77106,2442.6,2442.5,3.2078]
[1750801601869,26.1163,2442.6,2442.5,3.86258]
[1750801603176,0.7103,2442.6,2442.5,3.86258]
[1750801603467,25.399,2442.7,2442.6,0.65475]
[1750801603665,25.399,2442.7,2442.6,1.96755]
[1750801603869,25.399,2442.7,2442.6,1.99755]
[1750801605073,1.31917,2442.9,2442.6,1.99755]
[1750801605074,1.31917,2442.9,2442.8,0.6547]
[1750801605269,27.71508958,2442.9,2442.8,0.6547]
[1750801606273,27.06041958,2442.9,2442.8,0.6547]
[1750801606675,27.06041958,2442.9,2442.8,3.8625]
[1750801608370,27.06003497,2442.9,2442.8,3.8625]
[1750801609778,6.685,2443.1,2443.0,0.65464]
[1750801609972,33.0373844,2443.1,2443.0,0.65464]
[1750801610370,33.0373844,2443.1,2443.0,1.99684]
[1750801610570,33.0373844,2443.1,2443.0,0.65464]
[1750801611671,32.059,2443.1,2443.0,0.65464]
[1750801615681,25.374,2443.1,2443.0,0.65464]
[1750801616283,0.7114,2443.2,2443.1,0.65462]
[1750801616584,27.05531244,2443.2,2443.1,0.65462]
[1750801617779,27.70990244,2443.2,2443.1,0.65462]
[1750801618379,27.05531244,2443.2,2443.1,0.65462]
[1750801625886,27.70990244,2443.2,2443.1,0.65462]
[1750801626187,27.00331244,2443.2,2443.1,0.65462]
[1750801626888,1.71731244,2443.2,2443.1,0.65462]
[1750801627081,27.64690244,2443.2,2443.1,0.65462]
[1750801627287,0.65464,2443.1,2443.0,0.65463]
[1750801627585,26.641,2443.2,2443.1,0.65462]
[1750801627786,27.64675286,2443.2,2443.1,3.86242]
[1750801628596,2.37175286,2443.2,2443.1,3.86242]
[1750801628790,27.64175286,2443.2,2443.1,3.86242]
[1750801629488,26.98715286,2443.2,2443.1,3.86242]
[1750801630593,27.64174286,2443.2,2443.1,3.86242]
[1750801630988,26.98715286,2443.2,2443.1,3.86242]
[1750801631189,1.71715286,2443.2,2443.1,3.86242]
[1750801631389,26.97115286,2443.2,2443.1,3.86242]
[1750801632489,27.62574286,2443.2,2443.1,3.86242]
[1750801632695,28.97814286,2443.2,2443.1,3.2078]
[1750801634095,28.97814286,2443.2,2443.0,0.65463]
[1750801634294,8.30725286,2443.1,2443.0,0.65463]
[1750801636103,7.63575286,2443.1,2443.0,0.65463]
[1750801637600,1.00575286,2443.1,2443.0,0.65463]
[1750801637801,26.26075286,2443.1,2443.0,0.65463]
[1750801639609,26.91537286,2443.1,2443.0,0.65463]
[1750801640008,26.26075286,2443.1,2443.0,0.65463]
[1750801641809,26.91537286,2443.1,2443.0,0.65463]
[1750801642511,26.26075286,2443.1,2443.0,0.65463]
[1750801643315,26.91537286,2443.1,2443.0,0.65463]
[1750801647414,26.25875286,2443.1,2443.0,0.65463]
[1750801649611,26.26478034,2443.1,2443.0,0.65463]
[1750801651617,1.01178034,2443.1,2443.0,0.65463]
[1750801651811,26.26378034,2443.1,2443.0,0.65463]
[1750801652719,1.01178034,2443.1,2443.0,0.65463]
[1750801653016,26.26378034,2443.1,2443.0,0.65463]
[1750801654820,26.91840034,2443.1,2443.0,0.65463]
[1750801656418,0.65467,2443.0,2442.9,0.65466]
[1750801656625,0.65467,2442.9,2442.8,3.86247]
[1750801656815,1.66645034,2442.9,2442.8,3.86247]
[1750801657624,1.66645034,2442.9,2442.8,3.2078]
[1750801657830,8.27645034,2442.9,2442.8,3.2078]
[1750801658128,0.65474,2442.7,2442.5,0.65476]
[1750801658428,26.91653034,2442.6,2442.5,0.65476]
[1750801658817,26.26178034,2442.6,2442.5,0.65476]
[1750801659030,26.26127726,2442.6,2442.5,0.65476]
[1750801659325,25.25,2442.6,2442.5,0.65476]
[1750801660029,26.26103935,2442.6,2442.5,0.65476]
[1750801660328,25.25,2442.6,2442.5,0.65476]
[1750801661630,25.90475,2442.6,2442.5,0.65476]
[1750801661926,25.90475,2442.6,2442.5,0.69476]
[1750801662129,25.90475,2442.6,2442.5,0.65476]
[1750801662326,25.25,2442.6,2442.5,0.65476]
[1750801662522,25.90475,2442.6,2442.5,0.65476]
[1750801663423,25.25,2442.6,2442.4,3.86258]
[1750801663629,25.90477,2442.6,2442.5,0.65478]
[1750801663829,26.91576288,2442.6,2442.5,0.65478]
[1750801664830,25.90477,2442.6,2442.5,0.65478]
[1750801665030,26.91561837,2442.6,2442.5,0.65478]
[1750801665830,26.26084837,2442.6,2442.5,0.65478]
[1750801673440,26.91559837,2442.6,2442.5,0.65478]
[1750801677041,0.65477,2442.5,2442.4,3.86259]
[1750801677241,25.90477,2442.6,2442.5,0.65477]
[1750801677442,26.91619848,2442.6,2442.5,0.65477]
[1750801679044,26.91619848,2442.6,2442.4,3.86258]
[1750801679244,0.65477,2442.5,2442.4,3.88258]
[1750801682338,1.66689599,2442.5,2442.4,3.88258]
[1750801684046,26.91589599,2442.5,2442.4,3.88258]
[1750801684544,26.91589599,2442.5,2442.4,3.86258]
[1750801685340,26.91589599,2442.5,2442.4,3.91258]
[1750801688445,26.91589599,2442.5,2442.4,3.86258]
[1750801688944,26.91589599,2442.5,2442.4,3.91258]
[1750801691349,26.91589599,2442.5,2442.4,5.35358]
[1750801694754,26.91589599,2442.5,2442.4,4.6988]
[1750801695258,26.91589599,2442.5,2442.4,5.3536]
[1750801698354,25.90377,2442.5,2442.4,5.3536]
[1750801698555,25.90377,2442.5,2442.4,5.04654716]
[1750801699357,26.91835219,2442.5,2442.4,5.04654716]
[1750801700956,1.01458219,2442.5,2442.4,5.04654716]
[1750801701152,6.606,2443.1,2442.4,9.39174716]
[1750801701358,25.239,2443.0,2442.8,3.2078]
[1750801701657,7.26063,2443.1,2442.9,3.40034]
[1750801701956,7.26063,2443.1,2443.0,1.4057]
[1750801702156,0.65463,2443.1,2443.0,1.4157]
[1750801702357,25.89263,2443.1,2443.0,2.07034]
[1750801702956,25.89263,2443.1,2443.0,1.4157]
[1750801703858,25.238,2443.1,2443.0,2.07035]
[1750801704265,25.238,2443.1,2443.0,2.06035]
[1750801704447,25.238,2443.1,2443.0,1.7533485]
[1750801704651,25.89262,2443.1,2443.0,1.0986985]
[1750801704953,25.235,2443.1,2443.0,1.7533485]
[1750801705553,25.235,2443.2,2443.1,0.6546]
[1750801706157,12.68041496,2443.3,2443.1,0.6546]
[1750801706551,25.234,2443.2,2443.1,0.6546]
[1750801706747,7.26059,2443.3,2443.1,0.6546]
[1750801706951,25.234,2443.2,2443.1,0.6546]
[1750801707156,0.65459,2443.3,2443.1,0.6546]
[1750801707358,25.234,2443.2,2443.1,0.6546]
[1750801708459,0.65459,2443.3,2443.1,0.6546]
[1750801708656,0.65459,2443.3,2443.2,2.05709]
[1750801708957,25.231,2443.3,2443.2,2.05709]
[1750801709658,25.88557,2443.3,2443.2,2.05709]
[1750801710860,25.88356,2443.4,2443.3,0.65456]
[1750801711158,25.88356,2443.4,2443.3,0.34760243]
[1750801712456,0.65456,2443.4,2443.3,0.34760243]
[1750801712662,25.88356,2443.4,2443.3,0.34760243]
[1750801713163,26.22473153,2443.4,2443.3,0.34760243]
[1750801713759,25.229,2443.4,2443.3,0.34760243]
[1750801713958,0.99558759,2443.4,2443.3,0.34760243]
[1750801714164,6.605,2443.9,2443.3,0.01]
[1750801714361,25.226,2443.8,2443.7,0.65446]
[1750801715160,7.25941,2443.9,2443.8,0.65443]
[1750801715353,32.48441,2443.9,2443.8,0.65443]
[1750801715760,25.225,2443.9,2443.8,0.65443]
[1750801715959,0.65439,2444.0,2443.9,0.65441]
[1750801716151,32.47139,2444.0,2443.9,0.65441]
[1750801716356,0.65439,2444.0,2443.9,0.65441]
[1750801716555,6.593,2444.2,2444.1,0.65434]
[1750801716760,31.817,2444.2,2444.1,0.65434]
[1750801716959,3.2078,2444.5,2444.0,3.2078]
[1750801717163,0.39,2445.0,2444.4,6.24594436]
[1750801717360,0.39,2445.0,2444.9,0.65414]
[1750801724262,0.39,2445.0,2444.9,2.01764]
[1750801725264,0.6542,2445.3,2445.2,0.65406]
[1750801726369,6.592,2445.4,2445.3,0.65403]
[1750801726571,29.06679,2445.5,2445.3,0.65403]
[1750801727370,29.0668,2445.5,2445.3,0.65403]
[1750801728873,29.0638,2445.5,2445.4,0.654]
[1750801729270,28.4098,2445.5,2445.4,0.654]
[1750801729467,1.3648,2445.6,2445.4,0.654]
[1750801729770,27.9441,2445.6,2445.5,0.65398]
[1750801730462,26.5658,2445.6,2445.5,0.65398]
[1750801731175,26.5658,2445.6,2445.4,0.65399]
[1750801731372,27.9441,2445.6,2445.5,0.65398]
[1750801732283,2.7431,2445.6,2445.5,0.65398]
[1750801732468,27.9411,2445.6,2445.5,0.65398]
[1750801733572,1.3648,2445.6,2445.5,0.65398]
[1750801733872,26.5628,2445.6,2445.5,0.65398]
[1750801734475,26.5628,2445.6,2445.4,0.65399]
[1750801735578,27.21676,2445.6,2445.3,3.86181]
[1750801735772,28.62186,2445.6,2445.4,0.65399]
[1750801736172,27.9679,2445.6,2445.4,0.65399]
[1750801736372,26.5628,2445.6,2445.4,0.65399]
[1750801736571,25.194,2445.5,2445.4,0.654]
[1750801737480,25.84798,2445.5,2445.3,3.86181]
[1750801737682,0.65407,2445.2,2445.0,0.6541]
[1750801737881,1.35168,2445.1,2445.0,0.6541]
[1750801738074,0.6976,2445.1,2445.0,0.6541]
[1750801738273,1.35168,2445.1,2445.0,0.6541]
[1750801738676,1.35168,2445.1,2444.9,3.86192]
[1750801738876,1.35168,2445.1,2445.0,0.65411]
[1750801739481,0.6976,2445.1,2445.0,0.65411]
[1750801740382,1.35168,2445.1,2444.9,3.86192]
[1750801740585,0.65411,2445.0,2444.9,3.86192]
[1750801741784,27.9306,2445.1,2444.9,3.86192]
[1750801742384,27.9306,2445.1,2445.0,0.65411]
[1750801742586,27.9306,2445.1,2444.9,3.86192]
[1750801742888,27.93058,2445.1,2445.0,0.65411]
[1750801743590,27.2755,2445.1,2445.0,0.65411]
[1750801744184,27.92958,2445.1,2445.0,0.65411]
[1750801744487,27.2755,2445.1,2445.0,0.65411]
[1750801744888,27.2755,2445.1,2445.0,0.69411]
[1750801745283,28.26324231,2445.1,2445.0,0.69411]
[1750801745492,27.2755,2445.1,2445.0,0.69411]
[1750801745789,25.188,2445.4,2445.0,0.04]
[1750801745988,25.188,2445.4,2445.2,0.65406]
[1750801745989,0.98771881,2445.3,2445.2,0.65406]
[1750801746291,0.98771881,2445.3,2445.2,0.34733908]
[1750801747582,3.24168714,2445.8,2445.7,0.65392]
[1750801747787,3.8616,2446.2,2445.5,7.88085436]
[1750801747992,27.92353,2446.1,2445.9,0.65386]
[1750801748286,27.2697,2446.1,2446.0,0.65384]
[1750801748787,0.7045,2446.3,2446.2,0.65379]
[1750801750181,3.2078,2446.8,2446.2,5.0]
[1750801750382,3.2078,2447.2,2447.1,0.65355]
[1750801750586,25.184,2447.4,2446.9,3.03814436]
[1750801750778,3.03814436,2447.3,2447.0,0.65357]
[1750801750985,5.05765436,2447.3,2446.9,0.65358]
[1750801751188,0.7193,2447.2,2446.7,3.8675]
[1750801751487,0.7193,2447.2,2446.9,0.6536]
[1750801751488,7.95284,2447.2,2446.9,0.6536]
[1750801751684,7.2993,2447.2,2447.0,0.65358]
[1750801751891,7.95283,2447.2,2446.9,0.65359]
[1750801752085,27.23455,2447.1,2446.7,5.1695]
[1750801752284,26.581,2447.1,2446.8,0.65361]
[1750801752479,25.212,2447.4,2447.1,0.65355]
[1750801752684,0.65351,2447.3,2447.0,0.65356]
[1750801753280,25.299,2447.3,2446.9,0.65359]
[1750801753486,0.65362,2446.9,2446.7,3.2078]
[1750801753792,6.578,2447.1,2446.7,3.2078]
[1750801753987,0.65363,2446.8,2446.7,3.2078]
[1750801754186,0.6537,2446.6,2446.4,3.2078]
[1750801755083,0.6537,2446.6,2446.4,3.86154]
[1750801756390,0.6537,2446.6,2446.4,3.2078]
[1750801757593,0.6537,2446.6,2446.4,3.86153]
[1750801757792,0.6537,2446.6,2446.5,1.3946]
[1750801757993,29.2,2446.9,2446.5,2.04831]
[1750801758294,28.5068,2446.9,2446.5,2.04831]
[1750801758495,29.9119,2446.9,2446.5,0.65371]
[1750801758792,0.65366,2446.7,2446.5,0.65371]
[1750801762093,0.65366,2446.7,2446.6,0.65368]
[1750801762292,0.65366,2446.7,2446.5,0.65369]
[1750801763093,0.65366,2446.7,2446.5,1.97399]
[1750801763493,0.65366,2446.7,2446.6,0.65368]
[1750801763791,0.65366,2446.7,2446.5,0.65369]
[1750801765293,0.65368,2446.6,2446.5,0.65369]
[1750801765695,0.65368,2446.6,2446.4,3.86153]
[1750801765998,0.65371,2446.5,2446.4,3.86153]
[1750801766491,0.65371,2446.5,2446.4,3.2078]
[1750801767791,0.65371,2446.5,2446.4,3.86154]
[1750801770700,0.6537,2446.6,2446.4,3.86154]
[1750801771094,0.65371,2446.5,2446.4,3.2078]
[1750801772201,0.65371,2446.5,2446.4,3.86154]
[1750801772402,0.6537,2446.6,2446.4,3.86154]
[1750801773302,25.318,2446.7,2446.4,3.2078]
[1750801773303,0.65371,2446.5,2446.4,3.2078]
[1750801774106,1.3513,2446.6,2446.4,3.86152]
[1750801774604,0.6537,2446.6,2446.4,3.86152]
[1750801775004,0.6537,2446.6,2446.5,0.65371]
[1750801775407,1.63244085,2446.6,2446.5,0.65371]
[1750801776105,0.97874085,2446.6,2446.5,0.65371]
[1750801776495,1.63242085,2446.6,2446.5,0.65371]
[1750801777206,1.63242085,2446.6,2446.5,0.34714334]
[1750801777600,0.97874085,2446.6,2446.5,0.34714334]
[1750801789420,25.282,2446.7,2446.6,0.65368]
[1750801790516,26.26455562,2446.7,2446.6,0.65368]
[1750801791317,25.282,2446.7,2446.6,0.65368]
[1750801792215,26.26459507,2446.7,2446.6,0.65368]
[1750801793420,25.282,2446.7,2446.6,0.65368]
[1750801794718,0.65365,2446.8,2446.6,0.65368]
[1750801794926,25.187,2446.7,2446.6,0.65368]
[1750801796022,0.65365,2446.8,2446.7,0.65366]
[1750801796224,32.47665,2446.8,2446.7,0.65366]
[1750801799226,31.823,2446.8,2446.7,0.65366]
[1750801799730,33.2475,2446.8,2446.7,0.65366]
[1750801801029,31.823,2446.8,2446.7,0.65366]
[1750801801232,32.47663,2446.8,2446.7,0.65366]
[1750801802634,31.823,2446.8,2446.7,0.65366]
[1750801802836,32.47663,2446.8,2446.7,0.65366]
[1750801803034,31.823,2446.8,2446.7,0.65366]
[1750801803439,32.79827377,2446.8,2446.7,0.65366]
[1750801803937,0.97527377,2446.8,2446.7,0.65366]
[1750801804126,53.23448537,2447.5,2446.7,0.65366]
[1750801804127,3.2078,2447.3,2447.2,0.65352]
[1750801804331,3.2078,2447.6,2447.5,0.65344]
[1750801804533,28.3938,2447.6,2447.5,0.65344]
[1750801804733,28.4218,2447.6,2447.5,0.65344]
[1750801805334,28.4218,2447.6,2447.4,0.65345]
[1750801805537,35.7697,2447.6,2447.5,0.65344]
[1750801805737,3.2078,2447.6,2447.5,0.65344]
[1750801806041,3.2078,2447.6,2447.4,0.65345]
[1750801806235,25.291,2447.5,2447.4,0.65345]
[1750801806540,26.0137,2447.5,2447.4,0.65345]
[1750801806840,26.0137,2447.5,2447.4,0.65347]
[1750801807437,0.7187,2447.5,2447.4,0.65347]
[1750801807638,25.298,2447.5,2447.4,0.65347]
[1750801808137,25.95144,2447.5,2447.3,0.65349]
[1750801808334,25.95144,2447.5,2447.3,2.04509]
[1750801809541,25.298,2447.5,2447.3,2.04509]
[1750801810140,25.95144,2447.5,2447.3,0.65349]
[1750801810536,1.37357,2447.4,2447.2,3.86131]
[1750801813843,1.37357,2447.4,2447.2,3.2078]
[1750801814145,0.6535,2447.3,2447.2,3.2078]
[1750801814744,1.37359,2447.4,2447.2,3.86132]
[1750801815134,1.37359,2447.4,2447.2,5.16772]
[1750801817044,1.37359,2447.4,2447.3,1.3064]
[1750801819245,0.65349,2447.4,2447.3,1.9599]
[1750801819747,0.65346,2447.5,2447.4,0.65347]
[1750801820047,25.90246,2447.5,2447.4,2.79277]
[1750801820446,25.90246,2447.5,2447.4,2.1393]
[1750801820948,25.90246,2447.5,2447.4,2.79277]
[1750801821645,0.65346,2447.5,2447.4,2.79277]
[1750801821839,25.90246,2447.5,2447.4,2.1393]
[1750801823048,25.90246,2447.5,2447.4,2.79277]
[1750801824947,25.90246,2447.5,2447.4,2.1393]
[1750801825444,0.65347,2447.4,2447.2,3.2078]
[1750801825651,1.32287,2447.4,2447.2,3.2078]
[1750801825952,0.6535,2447.3,2447.2,3.2078]
[1750801826748,25.8945,2447.3,2447.2,3.2078]
[1750801828546,29.24034783,2447.3,2446.9,3.2078]
[1750801828850,0.65358,2447.0,2446.9,3.2078]
[1750801829150,0.65368,2446.7,2446.6,3.2078]
[1750801829449,25.88968,2446.7,2446.6,3.2078]
[1750801830449,28.22512114,2446.7,2446.6,3.2078]
[1750801832049,0.65374,2446.4,2446.3,3.2078]
[1750801832254,25.89174,2446.4,2446.3,3.2078]
[1750801832747,26.55014,2446.4,2446.3,3.2078]
[1750801832943,26.55014,2446.4,2445.9,3.2078]
[1750801832944,0.65381,2446.2,2445.9,3.2078]
[1750801833140,25.23,2446.1,2445.9,3.3678]
[1750801833446,0.65384,2446.0,2445.7,0.6746]
[1750801833642,0.6539,2445.8,2445.7,0.8146]